bitfinex/quotes_SOLUSD_20260309
["timestamp","ask_amount","ask_price","bid_price","bid_amount"]
[1773055319484,0.46319614,83.212,83.191,12.02046229]
[1773055319878,0.46319614,83.212,83.18,4.43954295]
[1773055320384,0.46319614,83.212,83.182,12.02183164]
[1773055320881,12.01651201,83.219,83.19,4.43954295]
[1773055321082,72.09654339,83.25,83.2,4.43954295]
[1773055321083,12.01504283,83.229,83.2,4.43954295]
[1773055321291,0.46319614,83.236,83.191,12.02053106]
[1773055321292,12.01452226,83.233,83.21,4.43954295]
[1773055321469,12.4777184,83.233,83.2,4.43954295]
[1773055321668,0.46319614,83.232,83.2,4.43954295]
[1773055321988,0.46319614,83.232,83.201,0.46666164]
[1773055322282,12.01475411,83.231,83.203,0.46666164]
[1773055323175,0.49511223,83.23,83.203,0.46666164]
[1773055324082,0.49511223,83.229,83.202,12.01894185]
[1773055324684,0.49511223,83.227,83.197,0.48119522]
[1773055324978,0.49511223,83.227,83.201,0.48119522]
[1773055325880,0.49511223,83.237,83.211,0.48119522]
[1773055327566,12.01359939,83.239,83.213,0.48119522]
[1773055327765,0.49511223,83.242,83.213,0.48119522]
[1773055328787,0.49511223,83.24,83.214,12.01720864]
[1773055328987,0.49511223,83.247,83.215,0.48119522]
[1773055329288,12.01228953,83.249,83.221,0.48119522]
[1773055329583,0.49511223,83.248,83.214,12.01720864]
[1773055330182,0.49511223,83.248,83.215,0.48119522]
[1773055330385,0.49511223,83.239,83.2,0.48119522]
[1773055330567,0.49511223,83.229,83.2,0.48119522]
[1773055331169,0.49511223,83.227,83.201,12.0190863]
[1773055332888,0.49511223,83.227,83.202,0.48119522]
[1773055334181,0.49511223,83.227,83.203,12.01879739]
[1773055334389,0.49511223,83.227,83.204,0.48119522]
[1773055334582,0.49511223,83.225,83.204,0.48119522]
[1773055335587,4.43954295,83.24,83.203,12.01879739]
[1773055335588,0.49511223,83.238,83.211,0.48119522]
[1773055335890,12.50888191,83.238,83.211,0.48119522]
[1773055336392,0.49511223,83.237,83.212,12.01749747]
[1773055336590,0.49511223,83.237,83.212,12.49869269]
[1773055337089,0.49511223,83.237,83.212,12.01749747]
[1773055338296,0.49511223,83.235,83.212,12.01749747]
[1773055338694,0.49511223,83.235,83.212,12.49869269]
[1773055338881,0.49511223,83.239,83.213,0.48119522]
[1773055339577,0.49511223,83.239,83.212,12.01749747]
[1773055340183,0.49511223,83.246,83.213,0.48119522]
[1773055340479,0.49511223,83.246,83.189,48.08318746]
[1773055340480,0.49511223,83.219,83.181,0.48119522]
[1773055340691,4.43954295,83.23,83.2,4.92073817]
[1773055340998,4.43954295,83.24,83.201,0.48119522]
[1773055341204,12.01255167,83.247,83.211,0.48119522]
[1773055342487,12.01255167,83.247,83.179,0.28432314]
[1773055342488,30.0228022,83.271,83.231,0.48119522]
[1773055342801,0.49511223,83.269,83.241,0.48119522]
[1773055342998,0.2,83.28,83.251,0.48119522]
[1773055343606,12.0078291,83.279,83.251,0.48119522]
[1773055344577,12.0078291,83.279,83.253,0.48119522]
[1773055345282,0.49511223,83.269,83.24,4.43954295]
[1773055345586,0.49511223,83.269,83.235,12.01412138]
[1773055345775,0.49511223,83.269,83.24,4.43954295]
[1773055346091,0.49511223,83.278,83.24,4.43954295]
[1773055346482,0.2,83.28,83.251,12.01186772]
[1773055346989,12.20777199,83.28,83.251,12.01186772]
[1773055347515,12.20777199,83.28,83.252,0.48119522]
[1773055348204,16.64731494,83.28,83.252,0.48119522]
[1773055348400,0.2,83.28,83.261,0.48119522]
[1773055350385,0.49511223,83.279,83.218,30.04157754]
[1773055350589,0.49511223,83.269,83.23,4.43954295]
[1773055350807,0.49511223,83.259,83.23,4.43954295]
[1773055351029,42.311725,83.279,83.174,90.17240964]
[1773055351030,0.49511223,83.249,83.174,90.17240964]
[1773055351311,0.49511223,83.249,83.21,4.43954295]
[1773055351489,4.43954295,83.25,83.22,4.43954295]
[1773055351694,0.49511223,83.259,83.22,4.43954295]
[1773055352545,0.49511223,83.257,83.223,0.48119522]
[1773055353110,4.43954295,83.25,83.223,0.48119522]
[1773055353691,0.49511223,83.257,83.223,0.48119522]
[1773055354302,12.00898271,83.271,83.241,0.49401701]
[1773055354613,0.47953777,83.267,83.242,12.01316643]
[1773055354911,0.47953777,83.268,83.243,0.49401701]
[1773055355319,0.47953777,83.268,83.242,12.01316643]
[1773055357602,0.47953777,83.266,83.242,0.49401701]
[1773055360197,0.47953777,83.273,83.244,0.49401701]
[1773055360410,5.11908072,83.28,83.244,0.49401701]
[1773055360909,5.11908072,83.28,83.243,42.04557739]
[1773055360910,0.2,83.28,83.251,0.49401701]
[1773055361101,0.47953777,83.296,83.261,0.49401701]
[1773055361304,12.00552254,83.295,83.261,0.49401701]
[1773055361809,12.00552254,83.295,83.26,4.43954295]
[1773055361810,0.47953777,83.316,83.281,0.49401701]
[1773055362125,4.43954295,83.31,83.281,0.49401701]
[1773055362301,12.00350502,83.309,83.283,0.49401701]
[1773055362920,0.47953777,83.314,83.283,0.49401701]
[1773055363098,5.11908072,83.32,83.283,0.49401701]
[1773055363300,12.00206435,83.319,83.283,0.49401701]
[1773055363501,0.47953777,83.318,83.283,0.49401701]
[1773055363913,12.00206435,83.319,83.283,0.49401701]
[1773055364410,12.00206435,83.319,83.28,4.43954295]
[1773055364411,12.00206435,83.319,83.285,0.49401701]
[1773055364801,12.00206435,83.319,83.291,0.49401701]
[1773055365516,0.47953777,83.318,83.285,0.49401701]
[1773055366416,0.47953777,83.318,83.291,0.49401701]
[1773055366717,0.47953777,83.316,83.291,0.49401701]
[1773055367113,0.47953777,83.316,83.286,42.02386955]
[1773055367306,0.47953777,83.316,83.287,0.49401701]
[1773055368521,0.2,83.32,83.291,0.49401701]
[1773055368715,0.47953777,83.339,83.292,0.49401701]
[1773055368921,0.2,83.35,83.292,0.49401701]
[1773055368922,4.43954295,83.33,83.292,0.49401701]
[1773055369223,0.47953777,83.329,83.292,0.49401701]
[1773055371426,0.47953777,83.329,83.294,0.45802273]
[1773055372130,0.48200738,83.319,83.294,0.45802273]
[1773055373624,0.48200738,83.309,83.281,12.00754073]
[1773055373817,0.48200738,83.309,83.281,12.46556346]
[1773055374019,0.48200738,83.309,83.282,0.45802273]
[1773055374414,0.48200738,83.317,83.282,0.45802273]
[1773055374726,12.0022084,83.318,83.282,0.45802273]
[1773055374920,12.00138231,83.324,83.291,0.45802273]
[1773055375111,4.43954295,83.32,83.282,0.45802273]
[1773055375312,0.48200738,83.319,83.282,0.45802273]
[1773055375711,0.48200738,83.317,83.284,0.45802273]
[1773055376329,4.92155033,83.31,83.284,0.45802273]
[1773055376510,0.48200738,83.309,83.284,0.45802273]
[1773055377515,0.48200738,83.299,83.272,42.03093476]
[1773055377813,0.48200738,83.289,83.254,0.45802273]
[1773055378831,4.43954295,83.28,83.254,0.45802273]
[1773055379022,0.48200738,83.279,83.251,12.01186772]
[1773055379414,0.48200738,83.279,83.251,12.46989045]
[1773055379620,0.48200738,83.279,83.252,0.45802273]
[1773055380129,0.48200738,83.279,83.25,30.02985338]
[1773055380130,0.48200738,83.279,83.253,12.01157916]
[1773055380330,0.48200738,83.279,83.254,0.45802273]
[1773055380833,12.00701627,83.285,83.254,0.45802273]
[1773055381026,0.48200738,83.284,83.254,0.45802273]
[1773055381232,12.00639951,83.289,83.254,0.45802273]
[1773055381427,0.48200738,83.288,83.261,0.45802273]
[1773055382016,0.48200738,83.288,83.262,12.0102808]
[1773055382217,0.48200738,83.288,83.262,12.46830353]
[1773055382630,0.48200738,83.286,83.262,12.46830353]
[1773055383417,0.48200738,83.286,83.262,12.0102808]
[1773055383621,0.48200738,83.286,83.263,0.47594179]
[1773055384215,0.49995251,83.293,83.265,0.47594179]
[1773055384635,0.49995251,83.289,83.264,42.03497309]
[1773055384939,0.49995251,83.289,83.265,0.47594179]
[1773055385135,0.49995251,83.296,83.265,0.47594179]
[1773055385637,4.4318315,83.3,83.265,0.47594179]
[1773055385638,0.49995251,83.294,83.265,0.47594179]
[1773055386027,12.00552254,83.295,83.24,4.4318315]
[1773055386028,0.49995251,83.279,83.256,12.01114634]
[1773055386228,0.49995251,83.277,83.246,42.51972421]
[1773055386424,0.49995251,83.269,83.246,12.48853098]
[1773055389646,0.49995251,83.299,83.251,0.47594179]
[1773055389947,0.14216157,83.309,83.251,0.47594179]
[1773055389948,0.49995251,83.289,83.251,0.47594179]
[1773055390453,0.49995251,83.289,83.246,42.04406217]
[1773055390454,0.49995251,83.299,83.271,0.47594179]
[1773055390636,0.49995251,83.309,83.281,0.47594179]
[1773055390947,0.49995251,83.32,83.291,0.47594179]
[1773055391162,0.49995251,83.32,83.301,12.0046578]
[1773055391728,0.49995251,83.327,83.301,12.0046578]
[1773055392147,0.49995251,83.327,83.296,12.00529487]
[1773055393029,0.49995251,83.327,83.291,0.47594179]
[1773055393030,0.49995251,83.319,83.291,12.48201618]
[1773055393225,63.68356633,83.348,83.301,12.0046578]
[1773055393226,0.49995251,83.324,83.301,12.0046578]
[1773055393429,0.49995251,83.362,83.311,0.47594179]
[1773055393646,0.49995251,83.361,83.34,11.84726487]
[1773055393943,0.49995251,83.361,83.331,0.47594179]
[1773055394857,0.49995251,83.379,83.341,0.47594179]
[1773055395043,1e-08,83.38,83.37,7.08266856]
[1773055395348,1e-08,83.38,83.362,11.99587341]
[1773055396340,1e-08,83.38,83.36,11.84726487]
[1773055397350,1e-08,83.38,83.362,0.47594179]
[1773055397650,1e-08,83.38,83.361,11.99601732]
[1773055398839,0.49995252,83.38,83.356,11.99659366]
[1773055399045,0.49995252,83.38,83.354,0.47594179]
[1773055399230,1e-08,83.38,83.36,11.84726487]
[1773055399436,1e-08,83.38,83.36,12.32320666]
[1773055399638,1e-08,83.38,83.361,0.47594179]
[1773055399839,0.49995251,83.398,83.371,0.47594179]
[1773055400046,59.92754628,83.435,83.371,0.47594179]
[1773055400047,0.49995251,83.408,83.371,0.47594179]
[1773055400655,11.84726487,83.4,83.356,0.47594179]
[1773055400838,0.49995251,83.397,83.361,0.47594179]
[1773055401350,0.49995251,83.397,83.371,0.47594179]
[1773055401551,0.49995251,83.389,83.351,11.99740019]
[1773055401939,0.49995251,83.389,83.36,11.84726487]
[1773055402854,0.49995251,83.387,83.36,11.84726487]
[1773055403041,0.49995251,83.387,83.361,11.99601732]
[1773055403554,0.49995251,83.395,83.37,11.84726487]
[1773055403739,11.99127035,83.394,83.37,11.84726487]
[1773055403940,11.99127035,83.394,83.37,12.32320666]
[1773055404138,11.99127035,83.394,83.371,0.47594179]
[1773055404338,0.49995251,83.395,83.371,0.47594179]
[1773055404534,11.99127035,83.394,83.371,0.47594179]
[1773055405239,11.99127035,83.394,83.372,11.99443458]
[1773055406736,0.49995251,83.395,83.372,11.99443458]
[1773055407153,0.49995251,83.409,83.38,11.84726487]
[1773055407345,12.48919302,83.409,83.381,0.47594179]
[1773055408060,0.49995251,83.399,83.36,11.84726487]
[1773055408270,0.49995251,83.399,83.361,0.47594179]
[1773055408861,0.49995251,83.404,83.371,0.47594179]
[1773055409062,0.49995251,83.399,83.371,0.47594179]
[1773055409267,0.49995251,83.397,83.371,11.99457845]
[1773055409764,0.49995251,83.397,83.364,0.47594179]
[1773055409958,0.49995251,83.397,83.365,11.99544173]
[1773055410149,0.49995251,83.397,83.36,11.84726487]
[1773055410342,0.49995251,83.397,83.361,11.99601732]
[1773055410539,0.49995251,83.389,83.361,11.99601732]
[1773055410744,0.49995251,83.389,83.37,11.84726487]
[1773055411461,0.49995251,83.388,83.363,11.99572952]
[1773055411652,0.49995251,83.388,83.354,0.47594179]
[1773055412165,41.97198992,83.389,83.351,11.99743783]
[1773055412166,0.49995251,83.379,83.351,11.99743783]
[1773055412465,0.49995251,83.379,83.351,12.47337962]
[1773055412656,0.49995251,83.379,83.352,0.47594179]
[1773055412854,0.49995251,83.388,83.36,11.84726487]
[1773055414067,11.99227697,83.387,83.362,0.49019095]
[1773055414569,0.4629979,83.394,83.362,0.49019095]
[1773055416058,12.45441204,83.393,83.37,11.84726487]
[1773055416475,0.4629979,83.392,83.37,11.84726487]
[1773055417350,11.99141414,83.393,83.371,0.49019095]
[1773055417563,11.99087216,83.397,83.371,0.49019095]
[1773055417750,0.4629979,83.4,83.371,0.49019095]
[1773055418465,0.4629979,83.4,83.37,11.84726487]
[1773055418466,0.4629979,83.398,83.372,12.48462553]
[1773055419763,0.4629979,83.396,83.37,11.84726487]
[1773055420061,0.4629979,83.396,83.365,0.49019095]
[1773055420360,0.4629979,83.396,83.366,11.99529784]
[1773055420562,0.4629979,83.396,83.365,0.49019095]
[1773055421163,0.4629979,83.396,83.365,12.48556248]
[1773055422184,0.4629979,83.394,83.36,23.84332423]
[1773055422353,0.4629979,83.389,83.358,12.48658812]
[1773055422555,0.4629979,83.389,83.358,11.99639717]
[1773055423258,0.4629979,83.389,83.36,11.84726487]
[1773055423959,0.4629979,83.389,83.361,0.49019095]
[1773055424167,11.99112656,83.395,83.371,0.49019095]
[1773055424472,12.45412446,83.395,83.371,0.49019095]
[1773055424866,0.4629979,83.394,83.371,0.49019095]
[1773055425068,0.4629979,83.394,83.37,11.84726487]
[1773055425270,0.4629979,83.394,83.368,11.9949388]
[1773055425467,0.4629979,83.394,83.369,0.49019095]
[1773055425767,0.4629979,83.394,83.368,11.9949388]
[1773055427067,0.2,83.41,83.35,11.84726487]
[1773055427068,0.4695423,83.389,83.35,11.84726487]
[1773055427273,0.4695423,83.389,83.35,12.31491444]
[1773055427597,0.4695423,83.389,83.351,0.46764957]
[1773055428869,0.4695423,83.387,83.351,0.46764957]
[1773055429167,0.4695423,83.387,83.36,11.84726487]
[1773055429962,0.4695423,83.379,83.344,11.99832258]
[1773055430162,0.4695423,83.379,83.351,0.46764957]
[1773055430367,0.4695423,83.379,83.344,41.99448307]
[1773055430368,0.4695423,83.387,83.36,12.31491444]
[1773055431070,0.4695423,83.385,83.346,0.46764957]
[1773055431277,0.4695423,83.379,83.346,0.46764957]
[1773055431578,0.4695423,83.379,83.347,11.99803232]
[1773055432068,0.4695423,83.379,83.34,11.84726487]
[1773055432069,0.4695423,83.369,83.332,0.46764957]
[1773055432666,0.4695423,83.369,83.34,11.84726487]
[1773055433567,0.4695423,83.367,83.34,4.42328161]
[1773055434673,0.4695423,83.384,83.351,0.46764957]
[1773055434860,0.4695423,83.384,83.36,4.42328161]
[1773055435063,0.4695423,83.383,83.35,4.42328161]
[1773055435278,0.4695423,83.383,83.351,0.46764957]
[1773055435766,0.4695423,83.381,83.352,12.46496217]
[1773055435964,0.4695423,83.381,83.353,0.46764957]
[1773055436681,0.4695423,83.381,83.36,4.42328161]
[1773055437777,11.99328376,83.38,83.36,4.42328161]
[1773055439177,11.99328376,83.38,83.361,11.99601732]
[1773055439376,11.99227697,83.387,83.362,0.46764957]
[1773055439975,0.4695423,83.386,83.362,0.46764957]
[1773055440283,11.9925646,83.385,83.363,11.99572952]
[1773055440481,11.9925646,83.385,83.363,12.46337909]
[1773055441283,11.99188751,83.39,83.364,0.46764957]
[1773055441564,0.4695423,83.389,83.364,0.46764957]
[1773055443286,0.47686587,83.388,83.356,0.46888608]
[1773055443480,0.47686587,83.388,83.356,12.46549614]
[1773055444187,0.47686587,83.388,83.357,0.46888608]
[1773055445478,41.97196272,83.389,83.359,0.46888608]
[1773055445479,0.47686587,83.386,83.359,0.46888608]
[1773055446482,0.47686587,83.386,83.36,4.42158224]
[1773055446789,0.47686587,83.386,83.361,0.46888608]
[1773055450485,0.47686587,83.384,83.361,0.46888608]
[1773055451668,11.99201503,83.389,83.362,0.46888608]
[1773055452165,12.4688809,83.389,83.362,0.46888608]
[1773055452373,0.47686587,83.388,83.362,0.46888608]
[1773055454296,4.42158224,83.38,83.349,0.46888608]
[1773055454588,0.47686587,83.379,83.351,0.46888608]
[1773055455486,11.99227697,83.387,83.361,0.46888608]
[1773055456171,12.46914284,83.387,83.361,0.46888608]
[1773055457085,0.47686587,83.386,83.357,11.99651133]
[1773055457470,0.47686587,83.386,83.358,0.46888608]
[1773055459667,0.47686587,83.384,83.36,0.46888608]
[1773055459872,0.47686587,83.384,83.361,0.46888608]
[1773055465396,0.47686587,83.382,83.361,0.46888608]
[1773055467890,0.47686587,83.38,83.361,0.46888608]
[1773055470492,11.99313992,83.381,83.363,0.46888608]
[1773055470797,12.47000579,83.381,83.363,0.46888608]
[1773055471179,0.47686587,83.38,83.358,11.99638349]
[1773055471379,0.47686587,83.38,83.359,0.46888608]
[1773055472279,11.9934276,83.379,83.359,0.46888608]
[1773055472495,12.47029347,83.379,83.359,0.46888608]
[1773055472890,0.47686587,83.378,83.359,0.46888608]
[1773055473997,0.4706336,83.389,83.361,0.45655741]
[1773055474779,12.46262295,83.389,83.361,0.45655741]
[1773055474980,0.4706336,83.388,83.361,0.45655741]
[1773055476087,0.4706336,83.388,83.363,0.45655741]
[1773055476395,11.99227697,83.387,83.363,0.45655741]
[1773055476610,0.4706336,83.386,83.359,0.45655741]
[1773055476795,0.4706336,83.386,83.361,0.45655741]
[1773055478487,0.4706336,83.384,83.355,0.45655741]
[1773055479995,41.97397612,83.385,83.326,72.00633655]
[1773055479996,0.4706336,83.369,83.331,0.45655741]
[1773055480382,0.4706336,83.367,83.333,0.45655741]
[1773055482404,0.4706336,83.367,83.341,0.45655741]
[1773055482707,12.46520549,83.372,83.343,0.45655741]
[1773055483201,11.99457189,83.372,83.343,0.45655741]
[1773055483385,0.4706336,83.371,83.343,0.45655741]
[1773055483795,12.46521205,83.371,83.343,0.45655741]
[1773055485306,0.46209792,83.37,83.345,0.45029598]
[1773055485503,0.46209792,83.378,83.351,0.45029598]
[1773055487801,0.46209792,83.376,83.351,0.45029598]
[1773055489599,0.46209792,83.374,83.345,0.45029598]
[1773055492804,0.46209792,83.372,83.347,0.45029598]
[1773055493308,11.99429071,83.373,83.351,0.45029598]
[1773055493906,12.45638863,83.373,83.351,0.45029598]
[1773055494207,0.46209792,83.372,83.351,0.45029598]
[1773055494712,0.46209792,83.372,83.346,11.99817627]
[1773055494898,0.46209792,83.372,83.347,0.45029598]
[1773055495208,0.46209792,83.37,83.347,0.45029598]
[1773055495509,0.46209792,83.37,83.341,0.45029598]
[1773055496903,0.46209792,83.368,83.341,0.45029598]
[1773055497802,0.46209792,83.366,83.343,0.45029598]
[1773055498610,0.46209792,83.366,83.337,11.99932833]
[1773055499103,0.46209792,83.366,83.338,0.45029598]
[1773055501092,0.46209792,83.366,83.34,4.42158224]
[1773055501297,0.46209792,83.364,83.34,4.42158224]
[1773055501498,0.46209792,83.364,83.338,0.45029598]
[1773055501694,4.42158224,83.36,83.325,0.45029598]
[1773055501898,0.46209792,83.359,83.321,0.45029598]
[1773055502815,0.46209792,83.357,83.322,0.45029598]
[1773055504701,11.99644905,83.358,83.331,0.49014342]
[1773055504900,0.46311904,83.363,83.34,0.49014342]
[1773055505300,0.46311904,83.363,83.334,11.9998788]
[1773055505511,0.46311904,83.359,83.33,4.42477037]
[1773055506198,0.46311904,83.359,83.327,0.49014342]
[1773055507010,4.42477037,83.36,83.33,4.91491379]
[1773055507011,0.46311904,83.357,83.33,4.91491379]
[1773055507918,0.46311904,83.357,83.33,0.49014342]
[1773055508427,0.46311904,83.349,83.317,0.49014342]
[1773055509025,0.46311904,83.347,83.317,0.49014342]
[1773055509520,0.46311904,83.347,83.32,4.42477037]
[1773055511404,0.28432314,83.357,83.331,0.49014342]
[1773055511405,0.74744218,83.357,83.331,0.49014342]
[1773055511618,0.46311904,83.354,83.322,0.49014342]
[1773055512826,11.99716866,83.353,83.322,0.49014342]
[1773055513008,0.46311904,83.352,83.322,0.49014342]
[1773055513526,0.46311904,83.352,83.324,0.49014342]
[1773055515008,0.46311904,83.35,83.326,0.49014342]
[1773055516723,0.28432314,83.363,83.331,0.49014342]
[1773055516724,0.46311904,83.363,83.331,0.49014342]
[1773055517926,0.46311904,83.359,83.331,0.49014342]
[1773055518106,0.46311904,83.359,83.324,0.49014342]
[1773055518933,0.46311904,83.358,83.324,0.49014342]
[1773055520131,0.46311904,83.355,83.324,0.49014342]
[1773055521007,0.46311904,83.355,83.325,0.49014342]
[1773055521924,0.46311904,83.349,83.311,0.49014342]
[1773055522815,0.46311904,83.347,83.321,0.49014342]
[1773055523911,11.99817627,83.346,83.323,0.49014342]
[1773055525121,0.46311904,83.363,83.331,0.49014342]
[1773055526439,0.46311904,83.361,83.333,0.49014342]
[1773055526620,0.46311904,83.359,83.333,0.49014342]
[1773055527128,12.45838801,83.367,83.333,0.49014342]
[1773055527434,0.46311904,83.366,83.333,0.49014342]
[1773055528010,3.69383402,83.382,83.341,0.49014342]
[1773055528328,47.94052731,83.437,83.351,0.49014342]
[1773055528329,0.46311904,83.389,83.351,0.49014342]
[1773055528632,0.46311904,83.369,83.333,0.49014342]
[1773055529206,0.46311904,83.369,83.333,42.49031142]
[1773055529413,0.46311904,83.369,83.341,0.49014342]
[1773055533339,0.48162074,83.367,83.343,0.49298454]
[1773055535159,0.48162074,83.373,83.343,0.49298454]
[1773055535544,0.48162074,83.371,83.345,0.49298454]
[1773055537929,0.48162074,83.369,83.346,11.99817627]
[1773055538129,0.48162074,83.369,83.347,0.49298454]
[1773055538646,0.48162074,83.369,83.341,12.49179217]
[1773055539032,0.48162074,83.369,83.342,0.49298454]
[1773055540444,0.48162074,83.367,83.332,0.49298454]
[1773055540834,4.42477037,83.36,83.332,0.49298454]
[1773055541024,0.48162074,83.359,83.332,0.49298454]
[1773055541848,0.48162074,83.357,83.334,0.49298454]
[1773055542342,0.48162074,83.357,83.327,0.49298454]
[1773055542546,0.48162074,83.357,83.325,12.00120012]
[1773055542547,0.48162074,83.357,83.325,12.49418466]
[1773055542928,0.48162074,83.357,83.325,12.00120012]
[1773055543127,0.48162074,83.357,83.326,0.49298454]
[1773055544248,0.48162074,83.355,83.328,0.49298454]
[1773055546043,0.46005637,83.353,83.33,0.45364349]
[1773055546246,0.46005637,83.353,83.331,0.45364349]
[1773055547146,11.99655112,83.358,83.331,0.45364349]
[1773055547446,29.98819731,83.367,83.341,0.45364349]
[1773055547447,0.46005637,83.366,83.341,0.45364349]
[1773055547667,0.46005637,83.378,83.351,0.45364349]
[1773055548049,0.46005637,83.378,83.353,0.45364349]
[1773055549134,0.46005637,83.378,83.355,0.45364349]
[1773055550136,0.46005637,83.384,83.36,4.42477037]
[1773055550352,0.46005637,83.384,83.361,0.45364349]
[1773055551146,0.46005637,83.382,83.361,0.45364349]
[1773055551444,0.46005637,83.382,83.357,11.99648771]
[1773055551857,11.99285226,83.383,83.35,4.42477037]
[1773055551858,0.46005637,83.379,83.353,11.99712643]
[1773055553453,0.46005637,83.377,83.353,12.45076992]
[1773055553955,0.46005637,83.377,83.354,0.45364349]
[1773055554733,0.46005637,83.375,83.354,0.45364349]
[1773055554933,0.46005637,83.375,83.355,11.99688081]
[1773055555332,0.46005637,83.375,83.355,12.4505243]
[1773055555646,0.46005637,83.375,83.356,0.45364349]
[1773055559138,0.46005637,83.375,83.357,11.99659296]
[1773055560064,0.46005637,83.375,83.357,0.45364349]
[1773055560363,0.46005637,83.369,83.33,4.42477037]
[1773055560557,0.46005637,83.349,83.322,0.45364349]
[1773055562144,0.46005637,83.337,83.316,0.45364349]
[1773055562351,0.46005637,83.337,83.31,0.45364349]
[1773055562544,0.46005637,83.329,83.309,12.00344261]
[1773055562740,0.46005637,83.32,83.292,0.45364349]
[1773055562947,0.46005637,83.319,83.292,0.45364349]
[1773055563551,0.4749988,83.309,83.286,12.46126416]
[1773055564058,0.4749988,83.309,83.283,12.00714115]
[1773055564366,0.4749988,83.308,83.283,0.45457445]
[1773055566756,0.4749988,83.329,83.301,0.45457445]
[1773055566956,3.69383402,83.356,83.301,0.45457445]
[1773055566957,0.4749988,83.339,83.301,0.45457445]
[1773055567864,0.4749988,83.339,83.31,4.42975337]
[1773055568076,0.4749988,83.339,83.311,0.45457445]
[1773055568866,4.42975337,83.34,83.31,4.42975337]
[1773055568867,12.47432683,83.338,83.313,0.45457445]
[1773055569065,0.4749988,83.349,83.313,0.45457445]
[1773055571566,0.4749988,83.339,83.314,12.00278464]
[1773055572359,0.4749988,83.339,83.314,12.45735909]
[1773055573367,0.4749988,83.339,83.315,0.45457445]
[1773055573573,0.4749988,83.339,83.316,12.00249651]
[1773055574071,0.4749988,83.339,83.317,0.45457445]
[1773055574868,0.4749988,83.337,83.316,12.00249651]
[1773055576767,0.4749988,83.335,83.312,0.45457445]
[1773055578857,0.4749988,83.333,83.311,12.00321686]
[1773055579078,11.999904,83.334,83.301,12.45923225]
[1773055579079,0.4749988,83.329,83.301,12.45923225]
[1773055580269,0.4749988,83.329,83.302,0.45457445]
[1773055582174,0.4749988,83.319,83.296,0.45457445]
[1773055582472,0.4749988,83.319,83.297,12.00523428]
[1773055583775,0.4749988,83.319,83.297,12.45980873]
[1773055585207,0.4749988,83.317,83.291,12.46067354]
[1773055585658,12.0022084,83.318,83.291,12.46067354]
[1773055585659,0.4749988,83.309,83.291,12.00609909]
[1773055586481,0.4749988,83.309,83.287,12.00664435]
[1773055586977,0.4749988,83.309,83.276,30.02053826]
[1773055586978,0.4749988,83.309,83.271,0.45457445]
[1773055587275,0.4749988,83.299,83.272,0.45457445]
[1773055588362,0.4749988,83.305,83.272,0.45457445]
[1773055589072,0.4749988,83.305,83.274,0.45457445]
[1773055589256,0.4749988,83.304,83.274,0.45457445]
[1773055590278,0.4749988,83.304,83.273,42.03043002]
[1773055590279,0.4749988,83.322,83.291,0.45457445]
[1773055590468,12.00203328,83.32,83.291,0.45457445]
[1773055590657,0.4749988,83.319,83.291,0.45457445]
[1773055591779,0.4749988,83.319,83.293,0.45457445]
[1773055591981,12.00203328,83.32,83.293,0.45457445]
[1773055592189,12.00141977,83.324,83.293,0.45457445]
[1773055592566,12.47641857,83.324,83.293,0.45457445]
[1773055592872,0.4749988,83.323,83.293,0.45457445]
[1773055593380,4.42975337,83.32,83.295,0.49749724]
[1773055593586,0.49555417,83.319,83.295,0.49749724]
[1773055596976,0.49555417,83.317,83.288,0.49749724]
[1773055597369,0.49555417,83.317,83.29,4.42975337]
[1773055597566,0.49555417,83.317,83.291,0.49749724]
[1773055598085,0.49555417,83.317,83.293,0.49749724]
[1773055598677,12.0022084,83.318,83.293,0.49749724]
[1773055599066,0.49555417,83.324,83.295,0.49749724]
[1773055601983,0.49555417,83.322,83.297,0.49749724]
[1773055603093,0.49555417,83.327,83.297,0.49749724]
[1773055604087,0.49555417,83.327,83.298,42.01781554]
[1773055604291,0.49555417,83.327,83.299,0.49749724]
[1773055604697,0.49555417,83.327,83.301,0.49749724]
[1773055605782,0.48079394,83.325,83.302,12.00451369]
[1773055606500,0.48079394,83.325,83.301,0.49749724]
[1773055607182,0.48079394,83.325,83.303,0.48895922]
[1773055607903,12.48213809,83.324,83.305,0.48895922]
[1773055608200,0.48079394,83.323,83.305,0.48895922]
[1773055610504,0.48079394,83.329,83.307,0.48895922]
[1773055611496,0.48079394,83.329,83.302,0.48895922]
[1773055612511,0.48079394,83.327,83.302,0.48895922]
[1773055612876,0.48079394,83.327,83.301,12.00463156]
[1773055613804,0.48079394,83.327,83.302,0.48895922]
[1773055614503,0.28432314,83.343,83.28,4.42975337]
[1773055614504,0.48079394,83.349,83.32,4.42975337]
[1773055614706,0.48079394,83.348,83.321,0.48895922]
[1773055616623,0.48079394,83.346,83.321,12.00168904]
[1773055616904,0.48079394,83.339,83.31,4.42975337]
[1773055617109,0.48079394,83.339,83.308,0.48895922]
[1773055617689,0.48079394,83.339,83.31,4.42975337]
[1773055617895,0.48079394,83.337,83.311,12.00321686]
[1773055619384,0.48079394,83.337,83.314,0.48895922]
[1773055621300,0.48079394,83.337,83.316,0.48895922]
[1773055623294,0.4833799,83.336,83.311,12.47903336]